fUST/lending_fUST_20250624
["ID","MTS","AMOUNT","RATE_DAILY","PERIOD"]
[367338159,1750755069832,-5119.0,0.000219,2]
[367338160,1750755069841,-3000.0,0.00021912,2]
[367338161,1750755069850,-702.83,0.00021917,2]
[367338162,1750755069859,-702.83,0.00021917,2]
[367338163,1750755069868,-437.58396113,0.00021917,2]
[367338164,1750755069878,-460.0,0.00021917,2]
[367338165,1750755069888,-460.0,0.00021917,2]
[367338166,1750755069898,-460.0,0.00021917,2]
[367338167,1750755069907,-460.0,0.00021917,2]
[367338168,1750755069917,-592.73,0.00021917,2]
[367338169,1750755069926,-460.0,0.00021917,2]
[367338170,1750755069935,-525.25,0.00021917,2]
[367338171,1750755069945,-460.0,0.00021917,2]
[367338172,1750755069954,-589.59,0.00021917,2]
[367338173,1750755069964,-639.86,0.00021917,19]
[367338174,1750755069974,-1033.48,0.00021917,2]
[367338175,1750755069983,-460.0,0.00021917,2]
[367338176,1750755069993,-701.42,0.00021917,2]
[367338177,1750755070002,-460.0,0.00021917,2]
[367338178,1750755070011,-1859.83,0.00021917,2]
[367338179,1750755070021,-460.0,0.00021917,2]
[367338180,1750755070031,-460.0,0.00021917,2]
[367338181,1750755070040,-460.0,0.00021917,2]
[367338182,1750755070049,-320.85269026,0.00021917,2]
[367338183,1750755070058,-460.0,0.00021917,2]
[367338184,1750755070068,-460.0,0.00021917,2]
[367338185,1750755070077,-460.0,0.00021917,2]
[367338186,1750755070087,-320.64988517,0.00021917,2]
[367338187,1750755070679,-462.66240314,0.00019178,2]
[367338188,1750755070688,-453.45741542,0.00019178,2]
[367338189,1750755070697,-460.0,0.00019178,2]
[367338190,1750755070707,-45.06064414,0.00021917,2]
[367338192,1750755073138,-460.0,0.00019178,2]
[367338193,1750755073147,-460.0,0.00019178,2]
[367338194,1750755073158,-460.0,0.00019178,2]
[367338195,1750755073167,-460.0,0.00019452,2]
[367338196,1750755073177,-460.0,0.00019452,2]
[367338197,1750755073188,-460.0,0.00019452,2]
[367338198,1750755073198,-281.52,0.00019452,2]
[367338199,1750755073208,-348.47,0.00019726,2]
[367338200,1750755073217,-461.49898289,0.00019726,2]
[367338201,1750755073227,-460.0,0.00019726,2]
[367338202,1750755073238,-460.0,0.0002,2]
[367338203,1750755073248,-460.0,0.00020273,2]
[367338204,1750755073258,-183.52,0.00020547,2]
[367338205,1750755073370,-94.28947069,0.00021917,2]
[367338206,1750755073379,-837.07,0.00021917,2]
[367338207,1750755073389,-460.0,0.00021917,2]
[367338208,1750755073398,-1145.59,0.00021917,2]
[367338209,1750755073408,-460.0,0.00021917,2]
[367338210,1750755073417,-460.0,0.00021917,2]
[367338211,1750755073427,-460.0,0.00021917,2]
[367338212,1750755073436,-460.0,0.00021917,2]
[367338213,1750755073445,-460.0,0.00021917,2]
[367338214,1750755073455,-460.0,0.00021917,2]
[367338215,1750755073464,-2160.1,0.00021917,2]
[367338216,1750755073474,-460.0,0.00021917,2]
[367338217,1750755073482,-460.0,0.00021917,2]
[367338218,1750755073491,-460.0,0.00021917,2]
[367338219,1750755073500,-460.0,0.00021917,2]
[367338220,1750755073510,-802.49,0.00021917,2]
[367338221,1750755073519,-1711.46,0.00021917,2]
[367338222,1750755073529,-460.0,0.00021917,2]
[367338223,1750755073539,-460.0,0.00021917,2]
[367338224,1750755073549,-460.0,0.00021917,2]
[367338225,1750755073559,-552.93,0.00021917,2]
[367338226,1750755073573,-460.0,0.00021917,2]
[367338227,1750755073582,-512.81,0.00021917,2]
[367338228,1750755073591,-1227.2,0.00021917,2]
[367338229,1750755073601,-460.0,0.00021917,2]
[367338230,1750755073611,-460.0,0.00021917,2]
[367338231,1750755073621,-460.0,0.00021917,2]
[367338232,1750755073630,-460.0,0.00021917,2]
[367338233,1750755073642,-890.92,0.00021917,2]
[367338234,1750755073651,-1129.31,0.00021917,2]
[367338235,1750755073661,-503.39,0.00021917,2]
[367338236,1750755073670,-3336.33,0.00021917,2]
[367338237,1750755073679,-460.0,0.00021917,2]
[367338238,1750755073687,-460.0,0.00021917,2]
[367338239,1750755073698,-460.0,0.00021917,2]
[367338240,1750755073707,-3108.84,0.00021917,2]
[367338241,1750755073717,-1043.22,0.00021917,2]
[367338242,1750755073726,-2718.8,0.00021917,2]
[367338243,1750755073735,-460.0,0.00021917,2]
[367338244,1750755073744,-2297.74,0.00021917,2]
[367338245,1750755073754,-460.0,0.00021917,2]
[367338246,1750755073764,-472.84,0.00021917,2]
[367338247,1750755073773,-686.97,0.00021917,2]
[367338248,1750755073783,-460.0,0.00021917,2]
[367338249,1750755073793,-460.0,0.00021917,2]
[367338250,1750755073803,-1034.53,0.00021917,2]
[367338251,1750755073813,-255.13737883,0.00021917,2]
[367338252,1750755073824,-4423.11,0.00021917,2]
[367338253,1750755073832,-460.0,0.00021917,2]
[367338254,1750755073842,-565.47,0.00021917,2]
[367338255,1750755073851,-498.87,0.00021917,2]
[367338256,1750755073861,-460.0,0.00021917,2]
[367338257,1750755073870,-1356.23,0.00021917,2]
[367338258,1750755073879,-564.81,0.00021917,2]
[367338259,1750755073889,-1527.77,0.00021917,2]
[367338260,1750755073899,-460.0,0.00021917,2]
[367338261,1750755073908,-917.06,0.00021917,2]
[367338262,1750755073918,-556.13,0.00021917,2]
[367338263,1750755073928,-460.0,0.00021917,2]
[367338264,1750755073937,-1891.95,0.00021917,2]
[367338265,1750755073946,-1048.02,0.00021917,2]
[367338266,1750755073955,-1140.59,0.00021917,2]
[367338267,1750755073964,-609.41,0.00021917,2]
[367338268,1750755073974,-3302.7,0.00021917,2]
[367338269,1750755073983,-460.0,0.00021917,2]
[367338270,1750755073993,-460.0,0.00021917,2]
[367338271,1750755074002,-1182.78,0.00021917,2]
[367338272,1750755074012,-865.91,0.00021917,2]
[367338273,1750755074021,-2811.91,0.00021917,2]
[367338274,1750755074030,-460.0,0.00021917,2]
[367338275,1750755074039,-460.0,0.00021917,2]
[367338276,1750755074049,-468.72,0.00021917,2]
[367338277,1750755074058,-460.0,0.00021917,2]
[367338278,1750755074067,-1078.54,0.00021917,2]
[367338279,1750755074076,-460.0,0.00021917,2]
[367338280,1750755074085,-460.0,0.00021917,2]
[367338281,1750755074095,-1172.06,0.00021917,2]
[367338282,1750755074106,-460.0,0.00021917,2]
[367338283,1750755074116,-936.84,0.00021917,2]
[367338284,1750755074125,-500.0,0.00021917,2]
[367338285,1750755074135,-1147.18,0.00021917,2]
[367338286,1750755074144,-669.18,0.00021917,2]
[367338287,1750755074153,-1364.47,0.00021917,2]
[367338288,1750755074163,-460.0,0.00021917,2]
[367338289,1750755074172,-787.57,0.00021917,2]
[367338290,1750755074182,-3667.8,0.00021917,2]
[367338291,1750755074191,-1283.7,0.00021917,2]
[367338292,1750755074202,-2790.88,0.00021917,2]
[367338293,1750755074212,-1147.28,0.00021917,2]
[367338294,1750755074222,-827.6,0.00021917,2]
[367338295,1750755074232,-460.0,0.00021917,2]
[367338296,1750755074243,-1404.87,0.00021917,2]
[367338297,1750755074252,-460.0,0.00021917,2]
[367338298,1750755074261,-460.0,0.00021917,2]
[367338299,1750755074271,-494.52,0.00021917,2]
[367338300,1750755074280,-567.76,0.00021917,2]
[367338301,1750755074290,-2058.09,0.00021917,2]
[367338302,1750755074300,-665.95,0.00021917,2]
[367338303,1750755074309,-151.0,0.00021918,2]
[367338304,1750755074318,-151.0,0.00021918,2]
[367338305,1750755074328,-151.0,0.00021918,2]
[367338306,1750755074337,-500.42319265,0.00021962,2]
[367338307,1750755074347,-506.97770535,0.00021962,2]
[367338308,1750755074356,-1000.0,0.00021962,2]
[367338309,1750755074365,-1000.0,0.00021962,2]
[367338310,1750755074375,-200.70594982,0.00021962,2]
[367338311,1750755074384,-1000.0,0.00021962,2]
[367338312,1750755074394,-1200.0,0.00021962,2]
[367338313,1750755074403,-1000.0,0.00021962,2]
[367338314,1750755074413,-1000.0,0.00021962,2]
[367338315,1750755074422,-1000.0,0.00021962,2]
[367338316,1750755074431,-1000.0,0.00021962,2]
[367338317,1750755074441,-197.95046952,0.00021962,2]
[367338318,1750755074450,-1000.0,0.00021962,2]
[367338319,1750755074459,-1000.0,0.00021962,2]
[367338320,1750755074468,-1000.0,0.00021962,2]
[367338321,1750755074477,-1000.0,0.00021962,2]
[367338322,1750755074487,-453.60279617,0.00021971,2]
[367338323,1750755074496,-151.0,0.00021973,7]
[367338324,1750755074506,-151.0,0.00021973,7]
[367338325,1750755074515,-151.0,0.00021973,7]
[367338326,1750755074525,-163.819478,0.0002199,7]
[367338327,1750755074536,-151.0,0.00021992,7]
[367338328,1750755074545,-151.0,0.00021992,7]
[367338329,1750755074555,-151.0,0.00021992,7]
[367338330,1750755074566,-151.0,0.00021992,7]
[367338331,1750755074575,-151.0,0.00021992,7]
[367338332,1750755074587,-2782.335492,0.00021992,15]
[367338333,1750755074596,-1000.0,0.00021997,2]
[367338334,1750755074606,-10000.0,0.00022,2]
[367338335,1750755074616,-151.0,0.00022,7]
[367338336,1750755074626,-151.0,0.00022,7]
[367338337,1750755074636,-151.0,0.00022,7]
[367338338,1750755074645,-200.0,0.00022,2]
[367338339,1750755074655,-160.0,0.00022,3]
[367338340,1750755074666,-160.0,0.00022,7]
[367338341,1750755074675,-160.0,0.00022,3]
[367338342,1750755074685,-160.0,0.00022,3]
[367338343,1750755074694,-160.0,0.00022,7]
[367338344,1750755074703,-12556.00642039,0.00022,3]
[367338345,1750755074713,-12556.00642039,0.00022,7]
[367338346,1750755074722,-846.68469334,0.00022,3]
[367338347,1750755074731,-846.68469334,0.00022,7]
[367338348,1750755074740,-624.0,0.00022004,2]
[367338349,1750755074750,-365.9458251,0.00022027,2]
[367338350,1750755074759,-365.9458251,0.00022027,2]
[367338351,1750755074768,-365.9458251,0.00022027,2]
[367338352,1750755074777,-365.9458251,0.00022027,2]
[367338353,1750755074786,-364.8839322,0.00022027,2]
[367338354,1750755074796,-521.06201231,0.0002203,2]
[367338355,1750755074805,-205.62079513,0.0002203,2]
[367338356,1750755074814,-460.0,0.00022037,2]
[367338357,1750755074823,-2782.335492,0.00022037,3]
[367338358,1750755074833,-2654.37735629,0.00022072,6]
[367338359,1750755074842,-198.5921172,0.00022087,2]
[367338360,1750755074852,-160.0,0.00022114,9]
[367338361,1750755074861,-1293.4,0.0002213,2]
[367338362,1750755074870,-2500.0,0.00022164,2]
[367338363,1750755074879,-1538.41850721,0.00022164,2]
[367338364,1750755074888,-2500.0,0.00022164,2]
[367338365,1750755074899,-2500.0,0.00022164,2]
[367338366,1750755074908,-418.0,0.00022186,2]
[367338367,1750755074917,-702.83,0.00022191,2]
[367338368,1750755074926,-460.0,0.00022191,2]
[367338369,1750755074935,-460.0,0.00022191,2]
[367338370,1750755074944,-460.0,0.00022191,2]
[367338371,1750755074953,-460.0,0.00022191,2]
[367338372,1750755074963,-460.0,0.00022191,2]
[367338373,1750755074972,-591.90547621,0.00022191,2]
[367338374,1750755074981,-589.59,0.00022191,2]
[367338375,1750755074990,-639.86,0.00022191,20]
[367338376,1750755074999,-1033.48,0.00022191,2]
[367338377,1750755075009,-460.0,0.00022191,2]
[367338378,1750755075019,-701.42,0.00022191,2]
[367338379,1750755075028,-460.0,0.00022191,2]
[367338380,1750755075037,-1859.83,0.00022191,2]
[367338381,1750755075046,-460.0,0.00022191,2]
[367338382,1750755075055,-460.0,0.00022191,2]
[367338383,1750755075064,-460.0,0.00022191,2]
[367338384,1750755075073,-460.0,0.00022191,2]
[367338385,1750755075081,-460.0,0.00022191,2]
[367338386,1750755075090,-460.0,0.00022191,2]
[367338387,1750755075099,-460.0,0.00022191,2]
[367338388,1750755075108,-837.07,0.00022191,2]
[367338389,1750755075117,-333.7,0.00022191,2]
[367338390,1750755075126,-1145.59,0.00022191,2]
[367338391,1750755075135,-460.0,0.00022191,2]
[367338392,1750755075145,-460.0,0.00022191,2]
[367338393,1750755075154,-460.0,0.00022191,2]
[367338394,1750755075163,-460.0,0.00022191,2]
[367338395,1750755075173,-460.0,0.00022191,2]
[367338396,1750755075183,-460.0,0.00022191,2]
[367338397,1750755075192,-2160.1,0.00022191,2]
[367338398,1750755075201,-460.0,0.00022191,2]
[367338399,1750755075210,-460.0,0.00022191,2]
[367338400,1750755075219,-460.0,0.00022191,2]
[367338401,1750755075229,-460.0,0.00022191,2]
[367338402,1750755075238,-802.49,0.00022191,2]
[367338403,1750755075247,-1711.46,0.00022191,2]
[367338404,1750755075257,-243.50396216,0.00022191,2]
[367338405,1750755075266,-460.0,0.00022191,2]
[367338406,1750755075276,-460.0,0.00022191,2]
[367338407,1750755075285,-566.99674788,0.00022191,2]
[367338408,1750755075294,-512.81,0.00022191,2]
[367338409,1750755075303,-1227.2,0.00022191,2]
[367338410,1750755075312,-334.25,0.00022191,2]
[367338411,1750755075321,-460.0,0.00022191,2]
[367338412,1750755075332,-460.0,0.00022191,2]
[367338413,1750755075341,-460.0,0.00022191,2]
[367338414,1750755075351,-890.92,0.00022191,2]
[367338415,1750755075360,-1129.31,0.00022191,2]
[367338416,1750755075369,-503.39,0.00022191,2]
[367338417,1750755075379,-3336.33,0.00022191,2]
[367338418,1750755075388,-365.83,0.00022191,2]
[367338419,1750755075397,-460.0,0.00022191,2]
[367338420,1750755075406,-235.93683638,0.00022191,2]
[367338421,1750755075415,-3108.84,0.00022191,2]
[367338422,1750755075424,-1043.22,0.00022191,2]
[367338423,1750755075434,-2718.8,0.00022191,2]
[367338424,1750755075443,-460.0,0.00022191,2]
[367338425,1750755075558,-2297.74,0.00022191,2]
[367338426,1750755075574,-460.0,0.00022191,2]
[367338427,1750755075583,-472.84,0.00022191,2]
[367338428,1750755075593,-686.97,0.00022191,2]
[367338429,1750755075602,-460.0,0.00022191,2]
[367338430,1750755075613,-460.0,0.00022191,2]
[367338431,1750755075622,-1034.53,0.00022191,2]
[367338432,1750755075632,-4423.11,0.00022191,2]
[367338433,1750755075641,-460.0,0.00022191,2]
[367338434,1750755075651,-498.87,0.00022191,2]
[367338435,1750755075661,-460.0,0.00022191,2]
[367338436,1750755075670,-1356.23,0.00022191,2]
[367338437,1750755075679,-564.81,0.00022191,2]
[367338438,1750755075689,-1527.77,0.00022191,2]
[367338439,1750755075699,-460.0,0.00022191,2]
[367338440,1750755075709,-917.06,0.00022191,2]
[367338441,1750755075719,-556.13,0.00022191,2]
[367338442,1750755075729,-460.0,0.00022191,2]
[367338443,1750755075739,-1048.02,0.00022191,2]
[367338444,1750755075748,-1891.95,0.00022191,2]
[367338445,1750755075758,-1140.59,0.00022191,2]
[367338446,1750755075768,-609.41,0.00022191,2]
[367338447,1750755075777,-3302.7,0.00022191,2]
[367338448,1750755075786,-460.0,0.00022191,2]
[367338449,1750755075795,-460.0,0.00022191,2]
[367338450,1750755075804,-1182.78,0.00022191,2]
[367338451,1750755075814,-865.91,0.00022191,2]
[367338452,1750755075823,-2811.91,0.00022191,2]
[367338453,1750755075832,-460.0,0.00022191,2]
[367338454,1750755075842,-460.0,0.00022191,2]
[367338455,1750755075850,-468.72,0.00022191,2]
[367338456,1750755075860,-460.0,0.00022191,2]
[367338457,1750755075870,-1078.54,0.00022191,2]
[367338458,1750755075879,-460.0,0.00022191,2]
[367338459,1750755075889,-460.0,0.00022191,2]
[367338460,1750755075898,-1172.06,0.00022191,2]
[367338461,1750755075907,-460.0,0.00022191,2]
[367338462,1750755075917,-936.84,0.00022191,2]
[367338463,1750755075926,-1147.18,0.00022191,2]
[367338464,1750755075935,-669.18,0.00022191,2]
[367338465,1750755075945,-1364.47,0.00022191,2]
[367338466,1750755075954,-460.0,0.00022191,2]
[367338467,1750755075963,-787.57,0.00022191,2]
[367338468,1750755075972,-3667.8,0.00022191,2]
[367338469,1750755075981,-1283.7,0.00022191,2]
[367338470,1750755075990,-2790.88,0.00022191,2]
[367338471,1750755076000,-1147.28,0.00022191,2]
[367338472,1750755076009,-827.6,0.00022191,2]
[367338473,1750755076018,-1404.87,0.00022191,2]
[367338474,1750755076027,-460.0,0.00022191,2]
[367338475,1750755076037,-460.0,0.00022191,2]
[367338476,1750755076046,-460.0,0.00022191,2]
[367338477,1750755076057,-494.52,0.00022191,2]
[367338478,1750755076066,-567.76,0.00022191,2]
[367338479,1750755076075,-2058.09,0.00022191,2]
[367338480,1750755076085,-665.95,0.00022191,2]
[367338481,1750755076095,-306.0,0.000222,2]
[367338482,1750755076104,-3244.27,0.000222,2]
[367338483,1750755076115,-196.0,0.00022201,2]
[367338484,1750755076125,-2672.95738835,0.00022212,2]
[367338485,1750755076135,-918.00460181,0.00022212,2]
[367338486,1750755076145,-3000.0,0.00022212,2]
[367338487,1750755076155,-573.28975601,0.00022216,2]
[367338488,1750755076164,-1322.74664885,0.00022216,2]
[367338489,1750755076173,-2000.0,0.00022216,2]
[367338490,1750755076182,-1006.78226863,0.00022216,2]
[367338491,1750755076191,-505.01186035,0.00022216,2]
[367338492,1750755076201,-1008.72316096,0.00022216,2]
[367338493,1750755076210,-2000.0,0.00022216,2]
[367338494,1750755076220,-2000.0,0.00022216,2]
[367338495,1750755076229,-1008.29744522,0.00022216,2]
[367338496,1750755076238,-503.01001119,0.00022216,2]
[367338497,1750755076247,-748.29370909,0.00022216,2]
[367338498,1750755076256,-767.66301371,0.00022216,2]
[367338499,1750755076266,-1605.85010708,0.00022216,2]
[367338500,1750755076275,-1004.21862861,0.00022216,2]
[367338501,1750755076284,-692.1149017,0.00022216,2]
[367338502,1750755076294,-206.0,0.0002223,2]
[367338503,1750755076303,-1293.4,0.0002223,3]
[367338504,1750755076312,-800.0,0.00022248,2]
[367338505,1750755076321,-647.2,0.00022254,4]
[367338506,1750755076330,-800.0,0.00022261,2]
[367338507,1750755076339,-177.3826656,0.00022301,2]
[367338508,1750755076348,-177.3826656,0.00022301,2]
[367338509,1750755076357,-177.3826656,0.00022301,2]
[367338510,1750755076366,-177.3826656,0.00022301,2]
[367338511,1750755076375,-177.3826656,0.00022301,2]
[367338512,1750755076384,-153.0,0.00022301,2]
[367338513,1750755076393,-153.0,0.00022301,2]
[367338514,1750755076402,-153.0,0.00022301,2]
[367338515,1750755076411,-153.0,0.00022301,2]
[367338516,1750755076421,-213.0152186,0.00022301,2]
[367338517,1750755076430,-460.0,0.00022311,2]
[367338518,1750755076440,-2654.37735629,0.00022314,7]
[367338519,1750755076449,-196.0,0.00022314,2]
[367338520,1750755076459,-200.0,0.0002233,4]
[367338521,1750755076469,-1293.4,0.0002233,6]
[367338522,1750755076478,-500.0,0.00022356,2]
[367338523,1750755076487,-7737.01787155,0.00022357,2]
[367338524,1750755076496,-196.0,0.00022382,2]
[367338525,1750755076505,-399.602447,0.00022398,2]
[367338526,1750755076515,-151.0,0.000224,7]
[367338527,1750755076533,-151.0,0.000224,7]
[367338528,1750755076545,-1500.0,0.000224,14]
[367338529,1750755076555,-1500.0,0.000224,14]
[367338530,1750755076567,-1500.0,0.000224,14]
[367338531,1750755076577,-1500.0,0.000224,14]
[367338532,1750755076586,-1500.0,0.000224,14]
[367338533,1750755076596,-1500.0,0.000224,14]
[367338534,1750755076606,-1500.0,0.000224,14]
[367338535,1750755076616,-1500.0,0.000224,14]
[367338536,1750755076626,-1500.0,0.000224,14]
[367338537,1750755076636,-1500.0,0.000224,14]
[367338538,1750755076646,-1500.0,0.000224,14]
[367338539,1750755076656,-1500.0,0.000224,14]
[367338540,1750755076666,-1500.0,0.000224,14]
[367338541,1750755076675,-1500.0,0.000224,14]
[367338542,1750755076685,-1500.0,0.000224,14]
[367338543,1750755076695,-1500.0,0.000224,14]
[367338544,1750755076704,-1500.0,0.000224,14]
[367338545,1750755076714,-1500.0,0.000224,14]
[367338546,1750755076723,-1500.0,0.000224,14]
[367338547,1750755076733,-1500.0,0.000224,14]
[367338548,1750755076743,-1500.0,0.000224,14]
[367338549,1750755076752,-1500.0,0.000224,14]
[367338550,1750755076762,-1500.0,0.000224,14]
[367338551,1750755076772,-1500.0,0.000224,14]
[367338552,1750755076781,-1500.0,0.000224,14]
[367338553,1750755076791,-1500.0,0.000224,14]
[367338554,1750755076800,-1500.0,0.000224,14]
[367338555,1750755076809,-1500.0,0.000224,14]
[367338556,1750755076819,-1500.0,0.000224,14]
[367338557,1750755076829,-1500.0,0.000224,14]
[367338558,1750755076838,-1500.0,0.000224,14]
[367338559,1750755076847,-1500.0,0.000224,14]
[367338560,1750755076857,-1500.0,0.000224,14]
[367338561,1750755076867,-1500.0,0.000224,14]
[367338562,1750755076877,-1500.0,0.000224,14]
[367338563,1750755076887,-1500.0,0.000224,14]
[367338564,1750755076897,-1500.0,0.000224,14]
[367338565,1750755076906,-1500.0,0.000224,14]
[367338566,1750755076916,-1500.0,0.000224,14]
[367338567,1750755076926,-1500.0,0.000224,14]
[367338568,1750755076935,-1500.0,0.000224,14]
[367338569,1750755076945,-1500.0,0.000224,14]
[367338570,1750755076955,-1500.0,0.000224,14]
[367338571,1750755076964,-1500.0,0.000224,14]
[367338572,1750755076974,-1500.0,0.000224,14]
[367338573,1750755076983,-1500.0,0.000224,14]
[367338574,1750755076993,-1500.0,0.000224,14]
[367338575,1750755077003,-1500.0,0.000224,14]
[367338576,1750755077012,-1500.0,0.000224,14]
[367338577,1750755077022,-1500.0,0.000224,14]
[367338578,1750755077032,-1500.0,0.000224,14]
[367338579,1750755077042,-1500.0,0.000224,14]
[367338580,1750755077051,-1500.0,0.000224,14]
[367338581,1750755077061,-1500.0,0.000224,14]
[367338582,1750755077070,-1500.0,0.000224,14]
[367338583,1750755077080,-1500.0,0.000224,14]
[367338584,1750755077089,-1500.0,0.000224,14]
[367338585,1750755077099,-1500.0,0.000224,14]
[367338586,1750755077109,-1500.0,0.000224,14]
[367338587,1750755077118,-1500.0,0.000224,14]
[367338588,1750755077127,-1500.0,0.000224,14]
[367338589,1750755077136,-1500.0,0.000224,14]
[367338590,1750755077146,-1500.0,0.000224,14]
[367338591,1750755077155,-1500.0,0.000224,14]
[367338592,1750755077165,-1500.0,0.000224,14]
[367338593,1750755077175,-12520.14,0.000224,7]
[367338594,1750755077184,-6750.25,0.000224,7]
[367338595,1750755077193,-82368.32,0.000224,2]
[367338596,1750755077203,-151.0,0.00022418,7]
[367338597,1750755077212,-151.0,0.00022418,7]
[367338598,1750755077221,-1293.4,0.0002243,4]
[367338599,1750755077230,-160.0,0.00022448,2]
[367338600,1750755077239,-3500.0,0.0002246,2]
[367338601,1750755077249,-151.0,0.00022465,7]
[367338602,1750755077259,-151.0,0.00022465,7]
[367338603,1750755077268,-353.835307,0.00022465,7]
[367338604,1750755077278,-353.835307,0.00022465,7]
[367338605,1750755077287,-197.3422,0.00022465,7]
[367338606,1750755077297,-197.3422,0.00022465,7]
[367338607,1750755077306,-297.439563,0.00022465,7]
[367338608,1750755077315,-370.67358,0.00022465,2]
[367338609,1750755077324,-370.67358,0.00022465,2]
[367338610,1750755077334,-702.83,0.00022465,2]
[367338611,1750755077343,-169.81451164,0.00022465,2]
[367338612,1750755077353,-460.0,0.00022465,2]
[367338613,1750755077362,-460.0,0.00022465,2]
[367338614,1750755077371,-460.0,0.00022465,2]
[367338615,1750755077380,-460.0,0.00022465,2]
[367338616,1750755077390,-589.59,0.00022465,2]
[367338617,1750755077399,-639.86,0.00022465,21]
[367338618,1750755077408,-1033.48,0.00022465,2]
[367338619,1750755077417,-460.0,0.00022465,2]
[367338620,1750755077426,-701.42,0.00022465,2]
[367338621,1750755077436,-460.0,0.00022465,2]
[367338622,1750755077447,-1859.83,0.00022465,2]
[367338623,1750755077456,-460.0,0.00022465,2]
[367338624,1750755077468,-460.0,0.00022465,2]
[367338625,1750755077477,-460.0,0.00022465,2]
[367338626,1750755077486,-564.47246709,0.00022465,2]
[367338627,1750755077495,-460.0,0.00022465,2]
[367338628,1750755077505,-380.22800727,0.00022465,2]
[367338629,1750755077655,-837.07,0.00022465,2]
[367338630,1750755077665,-1145.59,0.00022465,2]
[367338631,1750755077675,-460.0,0.00022465,2]
[367338632,1750755077684,-460.0,0.00022465,2]
[367338633,1750755077693,-460.0,0.00022465,2]
[367338634,1750755077702,-460.0,0.00022465,2]
[367338635,1750755077712,-460.0,0.00022465,2]
[367338636,1750755077721,-460.0,0.00022465,2]
[367338637,1750755077730,-2160.1,0.00022465,2]
[367338638,1750755077739,-460.0,0.00022465,2]
[367338639,1750755077748,-460.0,0.00022465,2]
[367338640,1750755077757,-460.0,0.00022465,2]
[367338641,1750755077766,-460.0,0.00022465,2]
[367338642,1750755077776,-802.49,0.00022465,2]
[367338643,1750755077785,-1711.46,0.00022465,2]
[367338644,1750755077794,-460.0,0.00022465,2]
[367338645,1750755077804,-460.0,0.00022465,2]
[367338646,1750755077814,-512.81,0.00022465,2]
[367338647,1750755077823,-1227.2,0.00022465,2]
[367338648,1750755077833,-460.0,0.00022465,2]
[367338649,1750755077843,-460.0,0.00022465,2]
[367338650,1750755077853,-460.0,0.00022465,2]
[367338651,1750755077863,-890.92,0.00022465,2]
[367338652,1750755077872,-1129.31,0.00022465,2]
[367338653,1750755077882,-503.39,0.00022465,2]
[367338654,1750755077893,-3336.33,0.00022465,2]
[367338655,1750755077902,-460.0,0.00022465,2]
[367338656,1750755077911,-3108.84,0.00022465,2]
[367338657,1750755077921,-1043.22,0.00022465,2]
[367338658,1750755077931,-2718.8,0.00022465,2]
[367338659,1750755077941,-460.0,0.00022465,2]